fUSD/lending_fUSD_20250103
["ID","MTS","AMOUNT","RATE_DAILY","PERIOD"]
[347549861,1735913452087,-500.0,9.579e-05,2]
[347549863,1735913452096,-500.0,9.579e-05,2]
[347549866,1735913452106,-534.86,9.579e-05,2]
[347549867,1735913452115,-500.0,9.579e-05,2]
[347549869,1735913452125,-1183.44,9.579e-05,2]
[347549871,1735913452134,-559.65,9.579e-05,2]
[347549873,1735913452143,-1781.61,9.579e-05,2]
[347549875,1735913452152,-659.46,9.579e-05,2]
[347549878,1735913452162,-1314.75,9.579e-05,2]
[347549879,1735913452171,-500.0,9.579e-05,2]
[347549881,1735913452180,-1642.0,9.579e-05,2]
[347549883,1735913452189,-1035.68,9.579e-05,2]
[347549885,1735913452197,-567.67,9.579e-05,2]
[347549887,1735913452207,-573.51,9.579e-05,2]
[347549889,1735913452216,-689.44,9.579e-05,2]
[347549891,1735913452226,-500.0,9.579e-05,2]
[347549893,1735913452235,-1252.18,9.579e-05,2]
[347549895,1735913452245,-657.33,9.579e-05,2]
[347549897,1735913452254,-500.0,9.579e-05,2]
[347549899,1735913452263,-543.79,9.579e-05,2]
[347549901,1735913452272,-500.0,9.579e-05,2]
[347549903,1735913452283,-1819.67,9.579e-05,2]
[347549905,1735913452292,-1467.29,9.579e-05,2]
[347549907,1735913452301,-2107.47,9.579e-05,2]
[347549909,1735913452312,-690.87,9.579e-05,2]
[347549911,1735913452322,-1306.84,9.579e-05,2]
[347549913,1735913452332,-1242.15,9.579e-05,2]
[347549915,1735913452342,-500.0,9.579e-05,2]
[347549918,1735913452352,-1431.5,9.579e-05,2]
[347549920,1735913452362,-2788.48,9.579e-05,2]
[347549922,1735913452371,-2112.73,9.579e-05,2]
[347549924,1735913452380,-500.0,9.579e-05,2]
[347549926,1735913452391,-554.99,9.579e-05,2]
[347549928,1735913452400,-500.0,9.579e-05,2]
[347549930,1735913452410,-1391.1,9.579e-05,2]
[347549932,1735913452419,-806.18,9.579e-05,2]
[347549934,1735913452429,-500.0,9.579e-05,2]
[347549936,1735913452438,-500.0,9.579e-05,2]
[347549938,1735913452448,-6013.34,9.579e-05,2]
[347549940,1735913452457,-988.71,9.579e-05,2]
[347549942,1735913452467,-3474.45,9.579e-05,2]
[347549944,1735913452476,-2304.1,9.579e-05,2]
[347549946,1735913452486,-624.08,9.579e-05,2]
[347549948,1735913452496,-2186.46,9.579e-05,2]
[347549950,1735913452505,-3570.17,9.579e-05,2]
[347549952,1735913452515,-6529.58,9.579e-05,2]
[347549954,1735913452526,-5802.63,9.579e-05,2]
[347549956,1735913452536,-574.33,9.579e-05,2]
[347549958,1735913452545,-2006.73,9.579e-05,2]
[347549960,1735913452555,-610.65,9.579e-05,2]
[347549961,1735913452564,-1976.51,9.579e-05,2]
[347549962,1735913452574,-757.3,9.579e-05,2]
[347549963,1735913452584,-3925.4,9.579e-05,2]
[347549964,1735913452594,-5304.55,9.579e-05,2]
[347549965,1735913452603,-1131.12,9.579e-05,2]
[347549966,1735913452613,-2396873.50544898,9.58e-05,2]
[347549977,1735913454132,-346.98461568,9.58e-05,2]
[347549978,1735913454161,-142995.9115818,9.58e-05,2]
[347549979,1735913454539,-5978.38156065,9.58e-05,2]
[347549980,1735913454551,-252.37204491,9.58e-05,2]
[347549981,1735913459358,-11319.51495258,9.58e-05,2]
[347549982,1735913459469,-15099.985,9.58e-05,2]
[347549983,1735913459481,-83973.57239749,9.58e-05,2]
[347549987,1735913694395,296.5724162,0.0002,120]
[347549988,1735913704467,150.0,9.58e-05,30]
[347549989,1735913704805,82.0,0.00010311,30]
[347549990,1735913704834,68.0,0.00010311,30]
[347549991,1735913705353,150.0,0.00011041,30]
[347549992,1735913705905,150.0,0.00011772,30]
[347549993,1735913706234,150.0,0.00012502,30]
[347549994,1735913706818,150.0,0.00013233,30]
[347549995,1735913708157,150.0,0.00013964,30]
[347549996,1735913708767,150.0,0.00014694,30]
[347549997,1735913962898,50000.0,0.0001312,24]
[347549998,1735913979447,18005.52174934,0.00014,29]
[347550000,1735914003455,32.0,0.00014,30]
[347550001,1735914003485,119.0,0.00014,30]
[347550002,1735914003790,151.0,0.00014889,30]
[347550005,1735914292614,190.0,0.000145,120]
[347550011,1735914304832,154.0,0.00014,30]
[347550012,1735914307762,154.0,0.00014615,30]
[347550019,1735914471485,453.38,0.0002,120]
[347550030,1735914603221,154.0,0.00014,30]
[347550031,1735914603698,154.0,0.00014727,30]
[347550050,1735914632574,-374.08,8.154e-05,2]
[347550052,1735914632583,-4309.23818678,8.219e-05,2]
[347550054,1735914632593,-1522.43,8.219e-05,2]
[347550056,1735914632602,-167.56,8.219e-05,2]
[347550058,1735914632612,-436.4111,8.24e-05,2]
[347550060,1735914632623,-250.0,8.289e-05,2]
[347550062,1735914632634,-300.0,8.338e-05,2]
[347550064,1735914632645,-230.01,8.339e-05,2]
[347550066,1735914632654,-6494.04258972,8.34e-05,2]
[347550068,1735914632666,-6123.13826646,8.34e-05,2]
[347550070,1735914632678,-11282.81914382,8.34e-05,2]
[347550072,1735914632688,-250.0,8.368e-05,2]
[347550074,1735914632697,-335.65,8.481e-05,2]
[347550075,1735914632706,-150.0,8.605e-05,2]
[347550077,1735914632716,-150.0,8.605e-05,2]
[347550079,1735914632726,-150.0,8.605e-05,2]
[347550081,1735914632735,-150.0,8.765e-05,2]
[347550083,1735914632746,-708.5438,8.877e-05,2]
[347550085,1735914632756,-1981.8476,8.877e-05,2]
[347550086,1735914632765,-811.2575,8.877e-05,2]
[347550087,1735914632775,-708.3343,8.877e-05,2]
[347550088,1735914632784,-265.4066,8.877e-05,2]
[347550089,1735914632794,-8021.0171,8.877e-05,2]
[347550090,1735914632803,-778.2019,8.878e-05,2]
[347550091,1735914632813,-24177.60459438,8.888e-05,2]
[347550092,1735914632826,-358.716973,8.888e-05,2]
[347550093,1735914632838,-11238.0690904,8.888e-05,2]
[347550094,1735914632850,-62030.75754773,8.888e-05,2]
[347550095,1735914632953,-4770.35764046,8.888e-05,2]
[347550096,1735914633013,-340.000016,8.888e-05,2]
[347550097,1735914633026,-1787.90978767,8.888e-05,2]
[347550098,1735914633039,-456.16000023,8.888e-05,2]
[347550099,1735914633053,-1085.423385,8.888e-05,2]
[347550100,1735914633074,-929.80888,8.888e-05,2]
[347550101,1735914633102,-1973.04769008,8.888e-05,2]
[347550109,1735914638026,-1624.02747372,8.888e-05,2]
[347550110,1735914638071,-4859.97566595,8.888e-05,2]
[347550111,1735914638084,-1795.73637612,8.888e-05,2]
[347550112,1735914638211,-1069.0065969,8.888e-05,2]
[347550113,1735914638222,-150.0,8.924e-05,2]
[347550114,1735914638233,-2517.35,8.976e-05,2]
[347550115,1735914638242,-1224.22747917,8.976e-05,2]
[347550116,1735914638266,-55.30252083,8.976e-05,2]
[347550117,1735914638277,-2103.03,8.976e-05,2]
[347550118,1735914638287,-523.47,8.976e-05,2]
[347550119,1735914638297,-340.77172482,8.976e-05,2]
[347550120,1735914638310,-2745.69827518,8.976e-05,2]
[347550121,1735914638320,-500.0,8.976e-05,2]
[347550122,1735914638329,-500.0,8.976e-05,2]
[347550123,1735914638339,-500.0,8.976e-05,2]
[347550124,1735914638349,-500.0,8.976e-05,2]
[347550125,1735914638359,-99.15172482,8.976e-05,2]
[347550126,1735914638377,-327.7410864,8.976e-05,2]
[347550128,1735914638390,-339.17718878,8.976e-05,2]
[347550130,1735914638400,-19.15766286,8.977e-05,2]
[347550132,1735914638412,-167.89087089,8.977e-05,2]
[347550134,1735914638421,-628.16,8.977e-05,2]
[347550136,1735914638431,-173.73656323,8.977e-05,2]
[347550138,1735914638444,-326.26343677,8.977e-05,2]
[347550140,1735914638454,-615.76,8.977e-05,2]
[347550142,1735914638463,-28.37656326,8.977e-05,2]
[347550317,1735914640241,-500.0,8.976e-05,2]
[347550319,1735914640250,-1494.25343674,8.977e-05,2]
[347550321,1735914640260,-548.4,8.977e-05,2]
[347550323,1735914640269,-532.1,8.977e-05,2]
[347550325,1735914640279,-500.0,8.977e-05,2]
[347550328,1735914640288,-902.36,8.977e-05,2]
[347550329,1735914640298,-536.7,8.977e-05,2]
[347550331,1735914640307,-500.0,8.977e-05,2]
[347550333,1735914640317,-919.22,8.977e-05,2]
[347550335,1735914640327,-544.37,8.977e-05,2]
[347550337,1735914640336,-617.13,8.977e-05,2]
[347550339,1735914640346,-747.94,8.977e-05,2]
[347550341,1735914640356,-500.0,8.977e-05,2]
[347550344,1735914640365,-500.0,8.977e-05,2]
[347550345,1735914640375,-709.97,8.977e-05,2]
[347550348,1735914640387,-724.6,8.977e-05,2]
[347550350,1735914640397,-500.0,8.977e-05,2]
[347550351,1735914640407,-500.0,8.977e-05,2]
[347550353,1735914640417,-538.11,8.977e-05,2]
[347550355,1735914640427,-672.5,8.977e-05,2]
[347550357,1735914640436,-500.0,8.977e-05,2]
[347550359,1735914640446,-500.0,8.977e-05,2]
[347550362,1735914640455,-500.0,8.977e-05,2]
[347550364,1735914640465,-581.68,8.977e-05,2]
[347550366,1735914640475,-500.0,8.977e-05,2]
[347550368,1735914640484,-500.0,8.977e-05,2]
[347550370,1735914640493,-510.96,8.977e-05,2]
[347550372,1735914640503,-500.0,8.977e-05,2]
[347550374,1735914640514,-5083.53,8.977e-05,2]
[347550376,1735914640523,-500.0,8.977e-05,2]
[347550378,1735914640532,-500.0,8.977e-05,2]
[347550379,1735914640542,-500.0,8.977e-05,2]
[347550381,1735914640552,-500.0,8.977e-05,2]
[347550383,1735914640561,-500.0,8.977e-05,2]
[347550385,1735914640570,-832.54,8.977e-05,2]
[347550387,1735914640579,-500.0,8.977e-05,2]
[347550389,1735914640589,-719.6,8.977e-05,2]
[347550391,1735914640598,-500.0,8.977e-05,2]
[347550393,1735914640608,-500.0,8.977e-05,2]
[347550395,1735914640618,-500.0,8.977e-05,2]
[347550397,1735914640629,-500.0,8.977e-05,2]
[347550399,1735914640638,-1291.61,8.977e-05,2]
[347550401,1735914640648,-500.0,8.977e-05,2]
[347550403,1735914640658,-500.0,8.977e-05,2]
[347550405,1735914640671,-500.0,8.977e-05,2]
[347550407,1735914640682,-500.0,8.977e-05,2]
[347550409,1735914640691,-262.20179576,8.977e-05,2]
[347550412,1735914640703,-507.76,8.977e-05,2]
[347550414,1735914640712,-500.0,8.977e-05,2]
[347550416,1735914640722,-509.01,8.977e-05,2]
[347550418,1735914640736,-899.91,8.977e-05,2]
[347550420,1735914640745,-500.0,8.977e-05,2]
[347550421,1735914640754,-500.0,8.977e-05,2]
[347550423,1735914640764,-874.31,8.977e-05,2]
[347550426,1735914640775,-669.92,8.977e-05,2]
[347550427,1735914640784,-500.0,8.977e-05,2]
[347550429,1735914640793,-500.0,8.977e-05,2]
[347550431,1735914640803,-642.55,8.977e-05,2]
[347550433,1735914640813,-501.17,8.977e-05,2]
[347550435,1735914640824,-500.0,8.977e-05,2]
[347550437,1735914640833,-500.0,8.977e-05,2]
[347550439,1735914640842,-739.93,8.977e-05,2]
[347550441,1735914640851,-500.0,8.977e-05,2]
[347550443,1735914640861,-2588.26,8.977e-05,2]
[347550445,1735914640871,-500.0,8.977e-05,2]
[347550447,1735914640883,-976.97,8.977e-05,2]
[347550449,1735914640892,-781.74,8.977e-05,2]
[347550451,1735914640902,-500.0,8.977e-05,2]
[347550453,1735914640912,-573.4,8.977e-05,2]
[347550455,1735914640922,-739.75,8.977e-05,2]
[347550457,1735914640931,-500.0,8.977e-05,2]
[347550459,1735914640941,-1245.02,8.977e-05,2]
[347550462,1735914640951,-604.1,8.977e-05,2]
[347550464,1735914640961,-500.0,8.977e-05,2]
[347550466,1735914640971,-500.0,8.977e-05,2]
[347550468,1735914640980,-1699.66,8.977e-05,2]
[347550470,1735914640990,-500.0,8.977e-05,2]
[347550472,1735914641000,-4118.58,8.977e-05,2]
[347550473,1735914641009,-539.46,8.977e-05,2]
[347550475,1735914641018,-500.0,8.977e-05,2]
[347550477,1735914641028,-937.35,8.977e-05,2]
[347550480,1735914641037,-545.59,8.977e-05,2]
[347550481,1735914641046,-660.86,8.977e-05,2]
[347550484,1735914641056,-912.7,8.977e-05,2]
[347550485,1735914641065,-694.89,8.977e-05,2]
[347550487,1735914641075,-580.44,8.977e-05,2]
[347550489,1735914641084,-1691.05,8.977e-05,2]
[347550491,1735914641093,-943.74,8.977e-05,2]
[347550493,1735914641103,-636.01,8.977e-05,2]
[347550495,1735914641113,-737.92,8.977e-05,2]
[347550498,1735914641123,-500.0,8.977e-05,2]
[347550500,1735914641135,-670.39,8.977e-05,2]
[347550501,1735914641145,-500.0,8.977e-05,2]
[347550504,1735914641155,-3700.42,8.977e-05,2]
[347550506,1735914641164,-500.0,8.977e-05,2]
[347550507,1735914641173,-2660.56759,8.977e-05,2]
[347550509,1735914641183,-500.0,8.977e-05,2]
[347550511,1735914641192,-527.82,8.977e-05,2]
[347550513,1735914641202,-580.31,8.977e-05,2]
[347550516,1735914641212,-1372.85,8.977e-05,2]
[347550518,1735914641221,-2019.66,8.977e-05,2]
[347550520,1735914641230,-1221.73,8.977e-05,2]
[347550522,1735914641239,-500.0,8.977e-05,2]
[347550524,1735914641248,-1457.54,8.977e-05,2]
[347550526,1735914641258,-2539.972416,8.977e-05,2]
[347550527,1735914641267,-500.0,8.977e-05,2]
[347550530,1735914641276,-1707.49,8.977e-05,2]
[347550531,1735914641285,-153.754164,8.977e-05,2]
[347550533,1735914641295,-2507.86,8.977e-05,2]
[347550535,1735914641304,-714.46,8.977e-05,2]
[347550537,1735914641313,-155.826196,8.977e-05,2]
[347550539,1735914641322,-797.3,8.977e-05,2]
[347550541,1735914641332,-857.84,8.977e-05,2]
[347550543,1735914641341,-681.81,8.977e-05,2]
[347550545,1735914641350,-1782.94,8.977e-05,2]
[347550547,1735914641360,-1262.91,8.977e-05,2]
[347550550,1735914641369,-1262.91,8.977e-05,2]
[347550551,1735914641379,-999.25,8.977e-05,2]
[347550553,1735914641388,-500.0,8.977e-05,2]
[347550555,1735914641397,-1251.64,8.977e-05,2]
[347550557,1735914641407,-772.43,8.977e-05,2]
[347550560,1735914641416,-2024.7,8.977e-05,2]
[347550562,1735914641426,-500.0,8.977e-05,2]
[347550564,1735914641435,-1102.49,8.977e-05,2]
[347550566,1735914641444,-917.6,8.977e-05,2]
[347550567,1735914641452,-500.0,8.977e-05,2]
[347550569,1735914641461,-1255.02,8.977e-05,2]
[347550571,1735914641470,-500.0,8.977e-05,2]
[347550573,1735914641479,-3434.38,8.977e-05,2]
[347550575,1735914641488,-1843.91,8.977e-05,2]
[347550577,1735914641497,-1020.9,8.977e-05,2]
[347550579,1735914641506,-5762.79,8.977e-05,2]
[347550581,1735914641517,-500.0,8.977e-05,2]
[347550583,1735914641526,-500.0,8.978e-05,2]
[347550585,1735914641535,-500.0,8.978e-05,2]
[347550587,1735914641544,-500.0,8.978e-05,2]
[347550589,1735914641553,-500.0,8.978e-05,2]
[347550591,1735914641562,-534.78,8.978e-05,2]
[347550593,1735914641571,-701.59,8.978e-05,2]
[347550595,1735914641581,-500.0,8.978e-05,2]
[347550597,1735914641592,-524.91,8.978e-05,2]
[347550599,1735914641601,-500.0,8.978e-05,2]
[347550601,1735914641610,-500.0,8.978e-05,2]
[347550603,1735914641620,-500.0,8.978e-05,2]
[347550605,1735914641629,-500.0,8.978e-05,2]
[347550607,1735914641638,-709.47,8.978e-05,2]
[347550609,1735914641648,-500.0,8.978e-05,2]
[347550611,1735914641657,-500.0,8.978e-05,2]
[347550613,1735914641667,-500.0,8.978e-05,2]
[347550616,1735914641676,-500.0,8.978e-05,2]
[347550617,1735914641685,-543.26,8.978e-05,2]
[347550619,1735914641695,-422.30283599,8.978e-05,2]
[347550621,1735914641704,-570.54,8.978e-05,2]
[347550623,1735914641713,-500.0,8.978e-05,2]
[347550625,1735914641722,-585.67,8.978e-05,2]
[347550626,1735914641736,-572.49,8.978e-05,2]
[347550628,1735914641746,-500.0,8.978e-05,2]
[347550630,1735914641755,-500.0,8.978e-05,2]
[347550632,1735914641764,-602.27,8.978e-05,2]
[347550634,1735914641774,-500.0,8.978e-05,2]
[347550636,1735914641784,-500.0,8.978e-05,2]
[347550637,1735914641793,-500.0,8.978e-05,2]
[347550639,1735914641802,-500.0,8.978e-05,2]
[347550641,1735914641812,-500.0,8.978e-05,2]
[347550643,1735914641822,-500.0,8.978e-05,2]
[347550645,1735914641831,-500.0,8.978e-05,2]
[347550647,1735914641841,-500.0,8.978e-05,2]
[347550649,1735914641850,-532.43,8.978e-05,2]
[347550651,1735914641859,-500.0,8.978e-05,2]
[347550653,1735914641867,-500.0,8.978e-05,2]
[347550655,1735914641877,-500.0,8.978e-05,2]
[347550657,1735914641887,-500.0,8.978e-05,2]
[347550659,1735914641896,-528.68,8.978e-05,2]
[347550661,1735914641905,-660.04,8.978e-05,2]
[347550663,1735914641914,-500.0,8.978e-05,2]
[347550665,1735914641924,-608.25,8.978e-05,2]
[347550667,1735914641933,-500.0,8.978e-05,2]
[347550669,1735914641942,-588.52,8.978e-05,2]
[347550671,1735914641952,-505.5394161,8.978e-05,2]
[347550673,1735914641961,-500.0,8.978e-05,2]
[347550675,1735914641970,-500.0,8.978e-05,2]
[347550677,1735914641979,-500.0,8.978e-05,2]
[347550679,1735914641988,-616.45,8.978e-05,2]
[347550681,1735914641998,-621.26,8.978e-05,2]
[347550683,1735914642007,-537.03,8.978e-05,2]
[347550684,1735914642017,-500.0,8.978e-05,2]
[347550685,1735914642026,-500.0,8.978e-05,2]
[347550686,1735914642035,-634.25,8.978e-05,2]
[347550687,1735914642045,-689.94,8.978e-05,2]
[347550688,1735914642054,-500.0,8.978e-05,2]
[347550689,1735914642063,-587.61,8.978e-05,2]
[347550690,1735914642072,-500.0,8.978e-05,2]
[347550691,1735914642081,-500.0,8.978e-05,2]
[347550692,1735914642091,-500.0,8.978e-05,2]
[347550693,1735914642101,-500.0,8.978e-05,2]
[347550694,1735914642110,-500.0,8.978e-05,2]
[347550695,1735914642119,-837.83,8.978e-05,2]
[347550697,1735914642129,-597.76,8.978e-05,2]
[347550699,1735914642138,-500.0,8.978e-05,2]
[347550701,1735914642148,-500.0,8.978e-05,2]
[347550703,1735914642157,-500.0,8.978e-05,2]
[347550705,1735914642167,-512.57,8.978e-05,2]
[347550707,1735914642176,-500.0,8.978e-05,2]
[347550709,1735914642185,-637.33,8.978e-05,2]
[347550711,1735914642195,-1134.13,8.978e-05,2]
[347550713,1735914642204,-536.33,8.978e-05,2]
[347550715,1735914642213,-500.0,8.978e-05,2]
[347550717,1735914642222,-390.77396205,8.978e-05,2]
[347550719,1735914642232,-631.98,8.978e-05,2]
[347550721,1735914642241,-500.0,8.978e-05,2]
[347550723,1735914642250,-563.39,8.978e-05,2]
[347550725,1735914642259,-1259.97,8.978e-05,2]
[347550727,1735914642268,-500.0,8.978e-05,2]
[347550729,1735914642277,-500.0,8.978e-05,2]
[347550731,1735914642286,-992.53,8.978e-05,2]
[347550733,1735914642294,-500.0,8.978e-05,2]
[347550735,1735914642303,-715.3,8.978e-05,2]
[347550737,1735914642313,-544.02,8.978e-05,2]
[347550739,1735914642323,-605.65,8.978e-05,2]
[347550741,1735914642332,-500.0,8.978e-05,2]
[347550743,1735914642341,-1200.01,8.978e-05,2]
[347550745,1735914642350,-629.94,8.978e-05,2]
[347550747,1735914642359,-500.0,8.978e-05,2]
[347550749,1735914642368,-521.13,8.978e-05,2]
[347550751,1735914642378,-500.0,8.978e-05,2]
[347550753,1735914642392,-1743.85,8.978e-05,2]
[347550755,1735914642400,-662.08,8.978e-05,2]
[347550757,1735914642410,-1252.39,8.978e-05,2]
[347550759,1735914642419,-1419.59,8.978e-05,2]
[347550761,1735914642429,-500.0,8.978e-05,2]
[347550763,1735914642438,-1494.0,8.978e-05,2]
[347550765,1735914642447,-564.36,8.978e-05,2]
[347550767,1735914642457,-1583.62,8.978e-05,2]
[347550768,1735914642466,-531.87,8.978e-05,2]
[347550771,1735914642475,-500.0,8.978e-05,2]
[347550773,1735914642485,-3439.28,8.978e-05,2]
[347550775,1735914642495,-772.59,8.978e-05,2]
[347550777,1735914642504,-500.0,8.978e-05,2]
[347550778,1735914642513,-500.0,8.978e-05,2]
[347550781,1735914642523,-516.82,8.978e-05,2]
[347550782,1735914642532,-947.51,8.978e-05,2]
[347550785,1735914642541,-1318.25,8.978e-05,2]
[347550787,1735914642551,-598.08,8.978e-05,2]
[347550788,1735914642559,-2185.73,8.978e-05,2]
[347550790,1735914642568,-1214.78,8.978e-05,2]
[347550792,1735914642577,-1242.61,8.978e-05,2]
[347550794,1735914642587,-1216.57,8.978e-05,2]
[347550796,1735914642596,-150.0,9.084e-05,2]
[347550798,1735914642605,-305.604,9.1e-05,2]
[347550800,1735914642615,-500.0,9.15e-05,2]
[347550802,1735914642624,-808.45,9.15e-05,2]
[347550804,1735914642636,-706.14,9.15e-05,2]
[347550806,1735914642646,-500.0,9.15e-05,2]
[347550809,1735914642655,-589.89,9.15e-05,2]
[347550810,1735914642664,-299.16471338,9.15e-05,2]
[347550813,1735914642673,-500.0,9.15e-05,2]
[347550815,1735914642683,-811.76,9.15e-05,2]
[347550816,1735914642692,-684.9,9.15e-05,2]
[347550818,1735914642701,-620.18,9.15e-05,2]
[347550821,1735914642710,-500.0,9.15e-05,2]
[347550823,1735914642720,-500.0,9.15e-05,2]
[347550824,1735914642729,-500.0,9.15e-05,2]
[347550826,1735914642742,-500.0,9.15e-05,2]
[347550828,1735914642751,-583.4,9.15e-05,2]
[347550830,1735914642761,-500.0,9.15e-05,2]
[347550833,1735914642770,-800.4,9.15e-05,2]
[347550835,1735914642781,-644.87,9.15e-05,2]
[347550836,1735914642791,-500.0,9.15e-05,2]
[347550839,1735914642802,-500.0,9.15e-05,2]
[347550840,1735914642812,-500.0,9.15e-05,2]
[347550842,1735914642822,-500.0,9.15e-05,2]
[347550844,1735914642831,-500.0,9.15e-05,2]
[347550846,1735914642840,-679.25,9.15e-05,2]
[347550848,1735914642850,-500.0,9.15e-05,2]
[347550851,1735914642859,-674.46,9.15e-05,2]
[347550852,1735914642868,-500.0,9.15e-05,2]
[347550855,1735914642878,-716.38,9.15e-05,2]
[347550856,1735914642890,-500.0,9.15e-05,2]
[347550859,1735914642899,-500.0,9.15e-05,2]
[347550861,1735914642909,-500.0,9.15e-05,2]
[347550863,1735914642919,-743.46,9.15e-05,2]
[347550916,1735914643172,-614.19,9.15e-05,2]
[347550918,1735914643182,-500.0,9.15e-05,2]
[347550920,1735914643191,-500.0,9.15e-05,2]
[347550922,1735914643200,-651.58,9.15e-05,2]
[347550924,1735914643209,-500.0,9.15e-05,2]
[347550926,1735914643218,-500.0,9.15e-05,2]
[347550928,1735914643227,-822.37,9.15e-05,2]
[347550930,1735914643236,-500.0,9.15e-05,2]
[347550932,1735914643245,-1420.48,9.15e-05,2]
[347550934,1735914643255,-500.0,9.15e-05,2]
[347550936,1735914643264,-500.0,9.15e-05,2]
[347550938,1735914643273,-500.0,9.15e-05,2]
[347550940,1735914643282,-821.16,9.15e-05,2]
[347550942,1735914643291,-559.75,9.15e-05,2]
[347550944,1735914643301,-574.04,9.15e-05,2]
[347550946,1735914643310,-888.3,9.15e-05,2]
[347550948,1735914643319,-795.74,9.15e-05,2]
[347550950,1735914643328,-500.0,9.15e-05,2]
[347550952,1735914643337,-965.13,9.15e-05,2]
[347550953,1735914643347,-3782.81,9.15e-05,2]
[347550955,1735914643356,-2181.03,9.15e-05,2]
[347550958,1735914643365,-709.36,9.15e-05,2]
[347550959,1735914643374,-548.14,9.15e-05,2]
[347550961,1735914643384,-577.26,9.15e-05,2]
[347550963,1735914643394,-4137.15,9.15e-05,2]
[347550965,1735914643403,-5000.0,9.15e-05,2]
[347550967,1735914643412,-19146.1187,9.151e-05,2]
[347550969,1735914643421,-150.0,9.243e-05,2]
[347550971,1735914643430,-500.0,9.25e-05,2]
[347550973,1735914643439,-500.0,9.25e-05,2]
[347550975,1735914643448,-500.0,9.25e-05,2]
[347550977,1735914643458,-193.63222622,9.25e-05,2]
[347550979,1735914643467,-500.0,9.25e-05,2]
[347550981,1735914643477,-500.0,9.25e-05,2]
[347550983,1735914643485,-500.0,9.25e-05,2]
[347550985,1735914643495,-500.0,9.25e-05,2]
[347550987,1735914643504,-500.0,9.25e-05,2]
[347550989,1735914643516,-500.0,9.25e-05,2]
[347550991,1735914643525,-500.0,9.25e-05,2]
[347550993,1735914643535,-500.0,9.25e-05,2]
[347550995,1735914643544,-500.0,9.25e-05,2]
[347550997,1735914643554,-500.0,9.25e-05,2]
[347550999,1735914643563,-500.0,9.25e-05,2]
[347551001,1735914643573,-500.0,9.25e-05,2]
[347551003,1735914643582,-500.0,9.25e-05,2]
[347551005,1735914643592,-500.0,9.25e-05,2]
[347551007,1735914643602,-500.0,9.25e-05,2]
[347551009,1735914643611,-493.53696497,9.25e-05,2]
[347551011,1735914643621,-500.0,9.25e-05,2]
[347551013,1735914643630,-596.73,9.25e-05,2]
[347551015,1735914643640,-155.93855569,9.25e-05,2]
[347551017,1735914643649,-500.0,9.25e-05,2]
[347551019,1735914643659,-500.0,9.25e-05,2]
[347551021,1735914643669,-510.03913294,9.25e-05,2]
[347551023,1735914643678,-500.0,9.25e-05,2]
[347551025,1735914643687,-500.0,9.25e-05,2]
[347551027,1735914643697,-500.0,9.25e-05,2]
[347551029,1735914643706,-500.0,9.25e-05,2]
[347551031,1735914643715,-500.0,9.25e-05,2]
[347551033,1735914643724,-500.0,9.25e-05,2]
[347551035,1735914643736,-500.0,9.25e-05,2]
[347551037,1735914643746,-500.0,9.25e-05,2]
[347551039,1735914643756,-500.0,9.25e-05,2]
[347551041,1735914643766,-500.0,9.25e-05,2]
[347551043,1735914643780,-500.0,9.25e-05,2]
[347551045,1735914643789,-500.0,9.25e-05,2]
[347551047,1735914643798,-538.43,9.25e-05,2]
[347551049,1735914643808,-156.995149,9.25e-05,2]
[347551051,1735914643817,-500.0,9.25e-05,2]
[347551053,1735914643826,-500.0,9.25e-05,2]
[347551055,1735914643835,-500.0,9.25e-05,2]
[347551057,1735914643843,-500.0,9.25e-05,2]
[347551059,1735914643853,-554.27,9.25e-05,2]
[347551061,1735914643862,-500.0,9.25e-05,2]